bitfinex/quotes_ETHUSD_20240819
["timestamp","ask_amount","ask_price","bid_price","bid_amount"]
[1724055880541,1.57381168,2623.1,2623.0,4.30464]
[1724055880956,0.3726327,2623.1,2623.0,4.30464]
[1724055881158,1.57381168,2623.1,2623.0,4.30464]
[1724055881869,0.3726327,2623.1,2623.0,4.30464]
[1724055882076,1.57381168,2623.1,2623.0,4.30464]
[1724055882278,0.3726327,2623.1,2623.0,4.30464]
[1724055883335,0.3726327,2623.1,2623.0,2.66864]
[1724055883635,1.57381168,2623.1,2623.0,2.66864]
[1724055883833,0.3726327,2623.1,2623.0,2.66864]
[1724055884246,1.57381168,2623.1,2623.0,2.66864]
[1724055884449,0.3726327,2623.1,2623.0,2.66864]
[1724055884970,1.17264936,2623.1,2623.0,2.66864]
[1724055885335,0.3726327,2623.1,2623.0,2.66864]
[1724055885967,1.17262637,2623.1,2623.0,2.66864]
[1724055886349,1.17258369,2623.1,2623.0,2.66864]
[1724055888977,1.17258369,2623.1,2623.0,6.97333]
[1724055891468,0.3726327,2623.1,2623.0,6.97333]
[1724055891971,0.3726327,2623.1,2623.0,13.043013]
[1724055892173,0.79995099,2623.4,2623.3,5.33678]
[1724055892376,0.79995099,2623.5,2623.4,2.4731]
[1724055892549,0.79995099,2623.6,2623.4,6.77739]
[1724055893163,0.79995099,2623.6,2623.5,2.66819]
[1724055893358,0.79995099,2623.7,2623.6,2.66808]
[1724055893558,0.79995099,2623.9,2623.8,2.66788]
[1724055896287,0.79995099,2624.0,2623.8,2.66788]
[1724055896993,0.79995099,2624.1,2623.8,2.66788]
[1724055899801,0.79995099,2624.2,2623.9,2.6677]
[1724055900157,0.79995099,2624.2,2624.0,2.66765]
[1724055900517,0.79995099,2624.3,2624.1,2.66752]
[1724055900658,0.79995099,2624.4,2624.1,2.66752]
[1724055901180,0.79995099,2624.3,2624.0,4.3036]
[1724055901360,0.79995099,2624.3,2624.0,2.6676]
[1724055902954,0.79995099,2624.3,2623.9,4.96707]
[1724055903386,0.79995099,2624.3,2623.9,2.66777]
[1724055904319,3.46723099,2624.4,2623.9,2.66777]
[1724055904516,3.11935099,2624.3,2623.9,2.66777]
[1724055904722,3.11935099,2624.3,2623.8,4.30382]
[1724055904928,3.11935099,2624.3,2623.8,6.97164]
[1724055905219,3.11935099,2624.3,2623.9,2.66778]
[1724055905924,2.3194,2624.3,2623.9,2.66778]
[1724055906721,3.11935099,2624.3,2623.9,2.66778]
[1724055906926,2.3194,2624.3,2623.9,2.66778]
[1724055907834,0.3728277,2624.2,2623.9,2.66778]
[1724055908027,2.3194,2624.3,2623.9,2.66778]
[1724055908331,0.3728277,2624.1,2623.9,2.66778]
[1724055908502,2.3194,2624.3,2623.9,2.66778]
[1724055908707,0.37281537,2624.0,2623.9,2.66778]
[1724055908909,2.3194,2624.3,2623.9,2.66778]
[1724055909107,0.37281537,2624.0,2623.9,2.66778]
[1724055909310,2.3194,2624.3,2623.9,2.66778]
[1724055909495,0.37281537,2624.0,2623.9,2.66778]
[1724055909808,2.3194,2624.3,2623.9,2.66778]
[1724055910131,0.37281537,2624.0,2623.9,2.66778]
[1724055910634,2.3194,2624.3,2623.9,2.66778]
[1724055910934,0.37281537,2624.0,2623.9,2.66778]
[1724055911132,2.3194,2624.3,2623.9,2.66778]
[1724055911821,0.37281537,2624.2,2623.9,2.66778]
[1724055912025,2.3194,2624.3,2623.9,2.66778]
[1724055912218,0.37281537,2624.1,2623.9,2.66778]
[1724055912533,2.3194,2624.3,2623.9,2.66778]
[1724055912732,0.37281537,2624.0,2623.9,2.66778]
[1724055913236,3.11935099,2624.3,2623.9,2.66778]
[1724055913432,0.37281537,2624.0,2623.9,2.66778]
[1724055913646,2.3194,2624.3,2623.9,2.66778]
[1724055913931,0.37281537,2624.0,2623.9,2.66778]
[1724055914123,2.3194,2624.3,2623.9,2.66778]
[1724055914323,0.37281537,2624.0,2623.9,2.66778]
[1724055914731,2.3194,2624.3,2624.0,2.66766]
[1724055915106,3.11935099,2624.3,2623.8,9.38431]
[1724055915420,0.3119351,2624.2,2623.8,9.38431]
[1724055915629,3.77944609,2624.2,2623.5,5.07976]
[1724055915804,0.68987971,2624.1,2623.5,5.07976]
[1724055916001,1.4898307,2624.1,2623.7,2.66791]
[1724055916204,3.46751099,2624.2,2623.7,6.97184]
[1724055916513,3.46751099,2624.2,2623.7,4.30391]
[1724055916719,0.79995099,2624.2,2623.7,6.97184]
[1724055917553,0.79995099,2624.2,2623.7,4.30391]
[1724055917703,1.76547599,2624.2,2623.7,4.30391]
[1724055918447,0.79995099,2624.1,2623.7,4.30391]
[1724055918764,0.79995099,2624.2,2623.7,6.97184]
[1724055918962,0.79995099,2624.2,2623.8,5.14045]
[1724055919346,0.79995099,2624.1,2623.8,5.14045]
[1724055919749,0.79995099,2624.2,2623.8,5.14045]
[1724055920639,0.79995099,2624.1,2623.8,5.14045]
[1724055921312,0.79995099,2624.1,2623.8,5.14042]
[1724055922435,0.3727586,2624.0,2623.8,5.14042]
[1724055923959,0.3727586,2624.0,2623.8,2.66782]
[1724055924163,0.3727586,2624.0,2623.7,1.636]
[1724055924335,1.17270959,2624.0,2623.7,1.636]
[1724055924655,1.17270959,2624.0,2623.7,4.30396]
[1724055925021,1.17270959,2624.0,2623.5,1.636]
[1724055925022,4.05104645,2624.0,2623.5,1.636]
[1724055925222,0.79995099,2623.9,2623.4,2.66819]
[1724055925423,1.32517353,2623.9,2623.4,5.33642]
[1724055925740,2.66814,2623.6,2623.0,2.66861]
[1724055925937,2.66814,2623.6,2622.9,2.6687]
[1724055925938,0.79995099,2623.4,2622.9,2.6687]
[1724055926275,0.79995099,2623.3,2622.9,2.6687]
[1724055926445,1.17270959,2623.3,2622.9,2.6687]
[1724055927023,1.17270959,2623.3,2622.9,5.33744]
[1724055928139,1.17270959,2623.3,2622.9,2.6687]
[1724055928140,3.58540959,2623.3,2622.9,2.6687]
[1724055928352,0.79995099,2623.2,2622.9,2.6687]
[1724055928657,0.3725981,2623.1,2622.9,2.6687]
[1724055929067,3.21265099,2623.3,2622.9,5.33743]
[1724055929270,3.21265099,2623.3,2623.0,2.66868]
[1724055929766,3.21265099,2623.3,2622.9,5.33743]
[1724055930937,3.21265099,2623.3,2622.9,2.6687]
[1724055932956,0.79995099,2623.2,2622.9,2.6687]
[1724055933465,3.21265099,2623.3,2622.9,2.6687]
[1724055934270,0.79995099,2623.2,2622.9,2.6687]
[1724055934565,3.21265099,2623.3,2622.9,5.33744]
[1724055934866,1.20117898,2623.4,2623.2,2.66849]
[1724055934867,0.79995099,2623.4,2623.2,2.66849]
[1724055936740,0.79995099,2623.4,2623.0,6.9733]
[1724055936946,0.79995099,2623.4,2623.0,6.97325]
[1724055936947,0.79995099,2623.3,2623.0,6.97325]
[1724055937465,0.79995099,2623.3,2623.1,2.66855]
[1724055937642,0.3725981,2623.2,2623.1,2.66855]
[1724055937841,0.3725981,2623.2,2623.0,6.97325]
[1724055938046,0.79995099,2623.3,2623.0,6.97325]
[1724055938246,0.3725981,2623.2,2623.0,6.97325]
[1724055938769,0.3725981,2623.1,2623.0,4.30461]
[1724055939137,0.79995099,2623.3,2623.1,2.66853]
[1724055939340,0.79995099,2623.4,2623.1,5.33707]
[1724055940184,0.79995099,2623.4,2623.1,7.78477]
[1724055940330,0.79995099,2623.4,2623.2,2.66847]
[1724055940748,0.79995099,2623.5,2623.2,2.66847]
[1724055940943,0.79995099,2623.5,2623.4,2.66829]
[1724055941284,0.79995099,2623.6,2623.5,2.66819]
[1724055941582,1.20117898,2623.7,2623.6,2.66808]
[1724055941583,0.79995099,2623.7,2623.6,2.66808]
[1724055941769,1.60100806,2624.0,2623.5,4.93909]
[1724055941770,0.79995099,2623.8,2623.7,2.66798]
[1724055941971,0.79995099,2623.9,2623.7,5.33596]
[1724055942177,0.79995099,2623.9,2623.7,2.66798]
[1724055942351,0.79995099,2623.9,2623.7,5.33591]
[1724055942551,0.79995099,2623.9,2623.8,2.66788]
[1724055943152,0.79995099,2623.9,2623.7,2.66793]
[1724055944764,0.79995099,2623.9,2623.8,2.66788]
[1724055944999,0.79995099,2624.0,2623.8,2.66788]
[1724055945207,0.79995099,2623.9,2623.8,2.66788]
[1724055945795,0.79995099,2624.0,2623.8,2.66788]
[1724055946960,0.79995099,2624.0,2623.9,2.66778]
[1724055947172,1.20117898,2624.1,2623.9,2.66778]
[1724055947173,0.79995099,2624.1,2624.0,2.66768]
[1724055947353,0.79995099,2624.2,2624.1,2.66758]
[1724055948303,0.79995099,2624.3,2624.1,2.66758]
[1724055948803,0.79995099,2624.2,2624.1,2.66758]
[1724055949157,0.79995099,2624.3,2624.1,2.66758]
[1724055952587,0.37268947,2624.2,2624.1,2.66758]
[1724055952966,0.79995099,2624.3,2624.1,2.66758]
[1724055953224,1.17264046,2624.2,2624.1,2.66758]
[1724055953383,0.37268947,2624.2,2624.1,2.66758]
[1724055953793,0.79995099,2624.3,2624.1,2.66758]
[1724055954066,0.37268947,2624.2,2624.1,2.66758]
[1724055954293,0.79995099,2624.3,2624.1,2.66758]
[1724055954503,0.37268947,2624.2,2624.1,2.66758]
[1724055954700,0.79995099,2624.3,2624.1,2.66758]
[1724055954883,0.37268947,2624.2,2624.1,2.66758]
[1724055955088,0.79995099,2624.3,2624.1,2.66758]
[1724055955291,0.37268947,2624.2,2624.1,2.66758]
[1724055955490,0.79995099,2624.3,2624.1,2.66758]
[1724055955696,0.37268947,2624.2,2624.1,2.66758]
[1724055955878,0.79995099,2624.3,2624.1,2.66758]
[1724055956078,0.37268947,2624.2,2624.1,2.66758]
[1724055956401,0.79995099,2624.3,2624.1,2.66758]
[1724055956592,0.37268947,2624.2,2624.1,2.66758]
[1724055956908,0.79995099,2624.2,2624.1,2.66758]
[1724055957104,1.17264046,2624.2,2624.1,2.66758]
[1724055958764,0.37268947,2624.2,2624.1,2.66758]
[1724055959212,0.79995099,2624.3,2624.2,2.66747]
[1724055964100,0.79995099,2624.4,2624.2,2.66747]
[1724055964899,0.79995099,2624.4,2624.3,2.66737]
[1724055965511,0.79995099,2624.5,2624.4,2.66727]
[1724055966540,0.79995099,2624.6,2624.4,2.66727]
[1724055966907,0.79995099,2624.5,2624.4,2.66727]
[1724055967109,0.79995099,2624.6,2624.4,2.66727]
[1724055967533,1.17272439,2624.5,2624.4,2.66727]
[1724055967704,0.3727734,2624.5,2624.4,2.66727]
[1724055968539,1.17272439,2624.5,2624.3,2.66737]
[1724055968952,1.17272439,2624.5,2624.3,5.33474]
[1724055969103,1.17272439,2624.5,2624.3,2.66737]
[1724055969445,1.17272439,2624.5,2624.3,2.66732]
[1724055970634,0.3727734,2624.5,2624.3,2.66732]
[1724055972951,1.17272439,2624.5,2624.3,2.66732]
[1724055973112,1.17272439,2624.5,2624.3,2.66731]
[1724055973464,0.3727734,2624.5,2624.4,2.66727]
[1724055974104,0.79995099,2624.6,2624.5,2.66717]
[1724055974707,0.79995099,2624.7,2624.5,2.66717]
[1724055976451,1.99394622,2625.1,2625.0,7.99998]
[1724055976626,0.79733806,2625.8,2625.6,2.66598]
[1724055977363,0.79733806,2625.9,2625.4,4.30216]
[1724055977659,0.79733806,2625.9,2625.5,2.66608]
[1724055978148,0.79733806,2626.0,2625.6,2.66605]
[1724055979215,0.79733806,2626.1,2625.6,2.66605]
[1724055979547,0.79733806,2626.0,2625.6,5.3321]
[1724055979948,0.79733806,2626.0,2625.7,2.66595]
[1724055980151,0.79733806,2626.1,2625.7,2.66595]
[1724055980949,0.79733806,2626.1,2625.6,5.33204]
[1724055981254,1.66928874,2626.1,2625.6,5.33204]
[1724055982358,1.66928874,2626.1,2625.6,2.66599]
[1724055982532,0.3729437,2626.0,2625.6,2.66599]
[1724055983118,0.3729437,2626.0,2625.4,2.6662]
[1724055983319,0.01933551,2625.7,2625.1,2.66655]
[1724055983537,0.01933551,2625.7,2625.1,2.6665]
[1724055983744,0.3729437,2625.6,2625.1,2.6665]
[1724055987737,3.0390037,2625.6,2625.0,2.66656]
[1724055987933,3.83634176,2625.6,2625.0,2.66656]
[1724055988133,3.0390037,2625.6,2625.1,2.66655]
[1724055988325,3.84284858,2625.6,2625.1,2.66655]
[1724055989153,4.64018664,2625.6,2625.1,2.66655]
[1724055989526,4.64018664,2625.6,2625.0,4.30256]
[1724055990866,4.64018664,2625.6,2625.0,6.96916]
[1724055991538,1.97412664,2625.6,2625.1,2.66654]
[1724055992034,1.636,2625.4,2624.8,4.94179]
[1724055992251,1.636,2625.4,2624.8,2.66679]
[1724055992252,5.09964806,2625.4,2624.8,2.66679]
[1724055992547,3.03925954,2625.3,2624.7,2.66693]
[1724055992761,0.37287954,2625.3,2624.8,2.66682]
[1724055992940,0.37287954,2625.3,2624.7,4.30295]
[1724055993121,3.03929954,2625.3,2624.7,4.30295]
[1724055993320,3.03929954,2625.3,2624.7,2.66695]
[1724055993561,0.37287954,2625.3,2624.7,6.96982]
[1724055993734,0.37287954,2625.3,2624.8,2.66684]
[1724055994132,2.66646,2625.2,2624.7,1.636]
[1724055994556,0.37287954,2625.1,2624.7,4.30296]
[1724055994754,4.26759294,2625.3,2624.7,4.30296]
[1724055994936,0.37287954,2625.0,2624.7,4.30296]
[1724055995148,6.93402294,2625.3,2624.7,4.30296]
[1724055995460,0.37287954,2624.9,2624.7,4.30296]
[1724055995663,3.46374806,2625.3,2624.7,4.30296]
[1724055995833,0.37287954,2624.8,2624.7,4.30296]
[1724055996367,3.46374806,2625.3,2624.7,4.30296]
[1724055996540,0.37287954,2624.8,2624.7,4.30296]
[1724055996741,3.46374806,2625.3,2624.7,5.527607]
[1724055996938,0.37287954,2624.8,2624.7,4.30296]
[1724055997158,3.46374806,2625.3,2624.7,6.96987]
[1724055997359,0.37287954,2624.8,2624.7,6.96987]
[1724055997548,0.79733806,2625.4,2624.8,2.6668]
[1724055997744,0.56476926,2625.3,2624.8,2.6668]
[1724055997971,0.9376488,2625.3,2624.8,2.6668]
[1724055998188,1.73498686,2625.3,2624.8,2.6668]
[1724056000294,0.37287954,2625.3,2625.1,2.66655]
[1724056000645,10.63213806,2625.5,2625.1,2.66655]
[1724056000868,0.37278084,2625.4,2625.1,2.66655]
[1724056001629,1.1701189,2625.4,2625.1,2.66655]
[1724056003571,1.1701189,2625.4,2624.9,9.31383]
[1724056003812,1.1701189,2625.4,2624.9,6.64708]
[1724056004028,1.1701189,2625.4,2625.0,2.66665]
[1724056005313,1.1701189,2625.4,2624.9,2.66668]
[1724056005519,0.79733806,2625.3,2624.9,5.33339]
[1724056005705,0.79733806,2625.3,2624.9,2.66668]
[1724056005907,0.37278084,2625.2,2624.9,2.66668]
[1724056006112,0.79733806,2625.3,2624.9,2.66668]
[1724056006290,0.37278084,2625.1,2624.9,5.33339]
[1724056006629,0.79733806,2625.3,2624.7,6.6391]
[1724056006771,0.37278084,2625.0,2624.7,6.6391]
[1724056006976,1.34733806,2625.2,2624.7,6.6391]
[1724056007176,0.37278084,2624.9,2624.7,6.6391]
[1724056007420,1.34733806,2625.2,2624.7,6.6391]
[1724056007709,4.01381806,2625.2,2624.7,3.9722]
[1724056007896,2.66668,2625.0,2624.5,6.71531]
[1724056008401,0.37278084,2624.9,2624.5,6.71531]
[1724056008596,0.37278084,2624.9,2624.5,9.38243]
[1724056008903,0.37278084,2624.9,2624.6,2.66701]
[1724056009098,3.28163806,2625.1,2624.6,2.66701]
[1724056009529,0.37274627,2625.0,2624.6,2.66701]
[1724056010108,3.83676433,2625.0,2624.5,7.653553]
[1724056010447,3.83676433,2625.0,2624.5,6.71531]
[1724056011107,3.83676433,2625.0,2624.5,9.38243]
[1724056011312,0.79733806,2624.9,2624.5,9.38243]
[1724056011623,0.79733806,2624.9,2624.5,6.71531]
[1724056012020,0.37274627,2624.8,2624.6,2.66702]
[1724056012321,0.79733806,2625.0,2624.7,1.636]
[1724056013022,0.79733806,2625.0,2624.8,2.66685]
[1724056013601,0.79733806,2625.0,2624.7,4.30291]
[1724056014005,0.79733806,2625.0,2624.8,2.66686]
[1724056014205,0.79733806,2625.0,2624.7,4.30291]
[1724056014802,0.79733806,2625.0,2624.7,4.30289]
[1724056016321,0.79733806,2624.9,2624.7,4.30289]
[1724056016492,0.79733806,2624.9,2624.7,6.9698]
[1724056016693,0.79733806,2624.9,2624.7,7.46887212]
[1724056016906,0.79733806,2625.0,2624.7,7.46887212]
[1724056017100,0.79733806,2624.9,2624.7,4.30289]
[1724056018625,1.19600709,2625.0,2624.8,5.03106]
[1724056018626,0.79733806,2625.0,2624.8,5.03106]
[1724056018823,0.79733806,2625.0,2624.9,4.969466]
[1724056018989,0.79733806,2625.1,2625.0,2.66666]
[1724056019811,1.19600709,2625.2,2625.1,2.66656]
[1724056019812,0.79733806,2625.2,2625.1,2.66656]
[1724056020338,0.79733806,2625.2,2625.1,4.94696]
[1724056021147,0.79733806,2625.2,2625.1,2.2804]
[1724056021449,0.79733806,2625.2,2625.1,3.30537526]
[1724056022219,1.19600709,2625.2,2625.1,3.30537526]
[1724056023368,1.19600709,2625.2,2625.1,1.02497526]
[1724056023517,1.19600709,2625.2,2624.9,4.92696]
[1724056023852,0.79903836,2625.0,2624.9,4.92696]
[1724056024046,0.79903836,2625.0,2624.8,2.6668]
[1724056024278,0.79903836,2625.0,2624.4,5.11078]
[1724056024279,3.46580836,2624.9,2624.4,5.11078]
[1724056024570,0.79903836,2624.6,2624.4,2.66718]
[1724056024712,0.79903836,2624.6,2624.3,2.66735]
[1724056024917,1.19600709,2624.7,2624.3,2.66735]
[1724056024918,0.79903836,2624.5,2624.3,3.342051]
[1724056025358,0.79903836,2624.5,2624.3,0.674701]
[1724056025655,0.79903836,2624.5,2624.3,3.342011]
[1724056026546,0.79903836,2624.5,2624.3,0.674701]
[1724056026720,0.79903836,2624.6,2624.2,6.74698]
[1724056026922,0.79903836,2624.5,2624.2,6.74698]
[1724056027161,0.79903836,2624.5,2624.2,9.4144]
[1724056027634,0.37274874,2624.4,2624.3,2.66737]
[1724056028240,0.37274874,2624.4,2624.3,3.608805]
[1724056029366,1.1717871,2624.4,2624.3,3.608805]
[1724056029561,0.37274874,2624.4,2624.3,3.608805]
[1724056029762,1.1717871,2624.4,2624.3,3.608805]
[1724056029922,0.37274874,2624.4,2624.3,3.608805]
[1724056033587,0.37274874,2624.4,2624.3,6.276175]
[1724056036085,0.37274874,2624.4,2624.3,3.608805]
[1724056036281,1.1717871,2624.4,2624.3,2.66737]
[1724056038393,0.37274874,2624.4,2624.3,2.66737]
[1724056039105,1.1717871,2624.4,2624.3,2.66737]
[1724056039306,0.37274874,2624.4,2624.3,5.33474]
[1724056039509,0.37274874,2624.4,2624.3,6.276178]
[1724056040006,0.37274874,2624.4,2624.3,11.329348]
[1724056040207,1.19600709,2624.7,2624.6,5.33414]
[1724056040208,0.79903836,2624.7,2624.6,5.33414]
[1724056040389,0.79903836,2624.7,2624.6,8.466476]
[1724056040712,1.19600709,2624.8,2624.7,5.33394]
[1724056040917,8.53600709,2624.9,2624.8,2.66686]
[1724056041412,8.53600709,2624.9,2624.8,5.33372]
[1724056041791,1.19600709,2624.9,2624.8,5.33372]
[1724056042879,1.56863483,2624.9,2624.8,5.33372]
[1724056043108,0.37262774,2624.9,2624.8,5.33372]
[1724056043308,0.37262774,2624.9,2624.8,6.3439256]
[1724056043309,1.17219948,2624.9,2624.8,6.3439256]
[1724056045684,0.37262774,2624.9,2624.8,6.3439256]
[1724056045906,0.37262774,2624.9,2624.8,11.3465856]
[1724056046303,0.79957174,2625.1,2625.0,5.33332]
[1724056046511,1.17219948,2625.1,2625.0,6.96932]
[1724056048444,0.37262774,2625.1,2625.0,6.96932]
[1724056050044,1.17219948,2625.1,2625.0,6.96932]
[1724056050347,0.37262774,2625.1,2625.0,8.42402192]
[1724056051146,1.17219948,2625.1,2625.0,8.42402192]
[1724056051547,0.37262774,2625.1,2625.0,8.42402192]
[1724056051704,1.17219948,2625.1,2625.0,8.42402192]
[1724056056232,0.37262774,2625.1,2625.0,8.42402192]
[1724056057470,0.37262774,2625.1,2625.0,6.78802192]
[1724056057628,1.17219948,2625.1,2625.0,5.33332]
[1724056058352,0.37262774,2625.1,2625.0,5.33332]
[1724056059227,1.17219948,2625.1,2625.0,5.33332]
[1724056059949,0.37262774,2625.1,2625.0,7.60872]
[1724056060255,0.37262774,2625.1,2625.0,5.33332]
[1724056062425,1.17219948,2625.1,2625.0,5.33332]
[1724056062625,0.37262774,2625.1,2625.0,5.33332]
[1724056062834,1.17219948,2625.1,2625.0,5.33332]
[1724056063042,1.17219948,2625.1,2624.9,2.66673]
[1724056064137,0.79957174,2625.0,2624.9,2.66673]
[1724056064340,1.17219948,2625.1,2625.0,2.66666]
[1724056064531,0.79957174,2625.1,2625.0,2.66666]
[1724056067436,0.79957174,2625.1,2625.0,5.33332]
[1724056067622,0.79957174,2625.2,2625.1,2.66656]
[1724056069454,0.79957174,2625.2,2625.1,5.33312]
[1724056070881,0.79957174,2625.2,2625.1,6.96912]
[1724056071046,1.19600709,2625.3,2625.2,5.33292]
[1724056071047,0.79957174,2625.3,2625.2,5.33292]
[1724056072167,1.19600709,2625.4,2625.2,5.33292]
[1724056072168,0.79957174,2625.4,2625.3,5.33272]
[1724056072486,0.79868875,2625.5,2625.4,2.66626]
[1724056072690,0.79868875,2625.5,2625.4,5.33252]
[1724056072849,0.79868875,2625.6,2625.5,5.3323]
[1724056078383,0.79868875,2625.7,2625.6,2.66605]
[1724056078587,0.79868875,2625.7,2625.6,3.56953407]
[1724056079371,0.79868875,2625.7,2625.6,8.51838407]
[1724056079573,0.79868875,2625.8,2625.7,2.66595]
[1724056079888,0.79868875,2625.8,2625.7,6.61393341]
[1724056080462,1.59467612,2626.0,2625.8,2.66585]
[1724056080989,1.59467612,2626.1,2625.9,2.66575]
[1724056081175,1.59467612,2626.1,2625.9,2.66569]
[1724056081352,1.19772612,2626.0,2625.9,2.66568]
[1724056084067,1.59467612,2626.1,2625.9,2.66568]
[1724056084279,1.19774213,2626.0,2625.9,2.66568]
[1724056084573,1.59467612,2626.1,2625.9,2.66568]
[1724056084775,1.19780779,2626.0,2625.9,2.66568]
[1724056085491,1.59467612,2626.1,2625.8,2.66582]
[1724056085678,1.59467612,2625.9,2625.7,2.66587]
[1724056085863,1.19796428,2625.8,2625.7,2.66587]
[1724056086390,0.79864098,2625.8,2625.7,2.66587]
[1724056086978,1.19796428,2625.9,2625.7,2.66587]
[1724056087182,0.79862316,2625.8,2625.7,2.66587]
[1724056087754,1.17147063,2625.8,2625.7,2.66587]
[1724056088190,1.17147655,2625.8,2625.7,2.66587]
[1724056088402,0.37284747,2625.8,2625.7,2.66587]
[1724056088753,1.17149421,2625.8,2625.7,2.66587]
[1724056090262,0.37284747,2625.8,2625.7,2.66587]
[1724056090459,1.17150815,2625.8,2625.7,2.66587]
[1724056094092,1.17150815,2625.8,2625.7,5.12527]
[1724056094791,1.17150815,2625.8,2625.7,7.79122]
[1724056095166,0.37284747,2625.8,2625.7,7.79122]
[1724056099067,0.37284747,2625.8,2625.7,5.12527]
[1724056099262,0.37284747,2625.8,2625.7,2.66587]
[1724056099263,1.17150815,2625.8,2625.7,2.66587]
[1724056099888,0.37284747,2625.8,2625.7,2.66587]
[1724056102605,1.57081175,2625.8,2625.7,2.66587]
[1724056103003,1.17134944,2625.8,2625.7,2.66587]
[1724056104015,1.17134944,2625.8,2625.7,5.33182]
[1724056104213,0.37284747,2625.8,2625.7,5.33182]
[1724056105213,1.17134944,2625.8,2625.7,5.33182]
[1724056106332,0.37284747,2625.8,2625.7,5.33182]
[1724056106481,1.17134944,2625.8,2625.7,5.33182]
[1724056106884,0.37284747,2625.8,2625.7,5.33182]
[1724056108023,0.37284747,2625.8,2625.7,6.255192]
[1724056108221,0.37284747,2625.8,2625.7,11.261642]
[1724056108743,0.79850197,2626.1,2626.0,2.66565]
[1724056109030,0.79850197,2626.2,2626.1,2.66554]
[1724056109641,1.19796428,2626.3,2626.2,5.33088]
[1724056109939,1.19796428,2626.3,2626.2,6.96688]
[1724056109940,0.79850034,2626.3,2626.2,6.96688]
[1724056110430,3.93247612,2626.3,2625.9,2.66567]
[1724056110579,0.79867799,2626.0,2625.8,2.66576]
[1724056110878,0.79867799,2625.9,2625.8,2.66576]
[1724056111079,3.46241699,2626.0,2625.8,2.66576]
[1724056111594,1.19801699,2625.9,2625.6,2.666]
[1724056111914,0.79889116,2625.7,2625.6,2.666]
[1724056112993,0.79889116,2625.7,2625.6,5.332]
[1724056113195,0.79889116,2625.8,2625.7,2.66595]
[1724056113391,1.19801699,2625.9,2625.7,2.66595]
[1724056113780,0.79916247,2625.8,2625.7,2.66595]
[1724056113978,1.19801699,2625.9,2625.7,2.66595]
[1724056114188,0.79916579,2625.8,2625.7,2.66595]
[1724056114386,1.19801699,2625.9,2625.7,2.66595]
[1724056114816,1.19801699,2625.8,2625.7,2.66595]
[1724056115510,1.19801699,2625.9,2625.8,2.66585]
[1724056116410,1.59467612,2626.0,2625.8,2.66585]
[1724056116814,1.19951682,2625.9,2625.8,2.66585]
[1724056117401,1.59467612,2626.0,2625.8,2.66585]
[1724056117604,1.57247652,2625.9,2625.8,2.66585]
[1724056117803,0.37273887,2625.9,2625.8,2.66585]
[1724056118523,1.96741499,2625.9,2625.8,2.66585]
[1724056118709,0.37273887,2625.9,2625.8,2.66585]
[1724056119099,1.96741499,2625.9,2625.8,2.66585]
[1724056120583,0.37273887,2625.9,2625.8,2.66585]
[1724056120782,2.37023863,2625.9,2625.8,2.66585]
[1724056121444,2.83291249,2625.9,2625.5,2.66607]
[1724056121602,2.80045813,2625.6,2625.5,2.66607]
[1724056121806,1.60026179,2625.6,2625.4,2.66625]
[1724056122108,0.37273887,2625.5,2625.4,2.66626]
[1724056122303,1.57299493,2625.5,2625.4,2.66626]
[1724056124231,1.57299493,2625.5,2625.1,5.3106]
[1724056124232,0.37273887,2625.5,2625.1,4.9771]
[1724056124429,0.37273887,2625.5,2624.7,0.06638599]
[1724056124430,1.60026179,2625.2,2625.0,2.6666]
[1724056124740,1.57271602,2625.1,2625.0,2.6666]
[1724056126325,1.57271602,2625.1,2624.9,2.6667]
[1724056126641,1.17245644,2625.1,2624.9,2.6667]
[1724056127145,1.17245644,2625.1,2624.9,5.33341]
[1724056127715,1.17245644,2625.1,2624.9,2.6667]
[1724056128045,1.17245644,2625.1,2624.9,5.3334]
[1724056128349,1.17245644,2625.1,2625.0,2.66666]
[1724056128526,0.372687,2625.1,2625.0,2.66666]
[1724056129362,0.372687,2625.1,2625.0,7.78132]
[1724056129540,0.372687,2625.1,2625.0,8.989734]
[1724056130360,0.372687,2625.1,2625.0,7.78132]
[1724056131439,0.79976944,2625.3,2625.2,2.66646]
[1724056131645,1.17245644,2625.3,2625.2,2.66646]
[1724056135592,1.17245644,2625.3,2625.2,4.30246]
[1724056136494,1.17245644,2625.3,2625.2,2.66646]
[1724056139093,0.372687,2625.3,2625.2,2.66646]
[1724056139473,1.17245644,2625.3,2625.2,2.66646]
[1724056139667,1.17245644,2625.3,2625.2,5.33292]
[1724056139866,0.372687,2625.3,2625.2,5.33292]
[1724056150616,0.79976944,2625.5,2625.4,2.66626]
[1724056150998,0.79976944,2625.5,2625.4,5.33252]
[1724056151207,0.79976944,2625.6,2625.5,2.66615]
[1724056151395,8.54002902,2625.7,2625.5,2.66615]
[1724056151787,0.79852992,2625.6,2625.5,2.66615]
[1724056152222,8.54002902,2625.7,2625.5,2.66615]
[1724056153489,8.54002902,2625.7,2625.4,2.66626]
[1724056153690,1.20002902,2625.6,2625.4,2.66626]
[1724056154311,1.20002902,2625.5,2625.4,2.66626]
[1724056154724,3.48722902,2625.5,2625.4,2.66626]
[1724056154925,3.88746179,2625.5,2625.4,2.66626]
[1724056155327,3.48538663,2625.5,2625.4,2.66626]
[1724056155514,1.19840482,2625.5,2625.4,2.66626]
[1724056160000,1.19840482,2625.5,2625.4,5.10276]
[1724056162595,1.57104739,2625.5,2625.4,5.10276]
[1724056165500,0.37264257,2625.5,2625.4,5.10276]
[1724056166514,1.97290436,2625.5,2625.4,5.10276]
[1724056172005,0.37264257,2625.5,2625.4,7.76902]
[1724056172344,1.97290436,2625.5,2625.4,10.078896]
[1724056172544,0.37264257,2625.5,2625.4,10.078896]
[1724056172921,1.17291499,2625.5,2625.4,10.078896]
[1724056173736,0.37264257,2625.5,2625.4,12.745156]
[1724056174733,0.80027242,2625.7,2625.6,5.3321]
[1724056175036,0.80027242,2625.7,2625.6,6.9681]
[1724056176446,0.80027242,2625.8,2625.7,5.3319]
[1724056177652,1.17292486,2625.8,2625.7,5.3319]
[1724056182315,1.17292486,2625.8,2625.7,6.15614156]
[1724056184733,1.17292486,2625.8,2625.7,5.3319]
[1724056189451,0.37265244,2625.8,2625.7,7.7814]